bitfinex/quotes_SOLUSD_20260220
["timestamp","ask_amount","ask_price","bid_price","bid_amount"]
[1771589427327,3.4795766,83.849,83.81,4.38637523]
[1771589427525,3.4795766,83.849,83.808,3.43556158]
[1771589427526,3.4795766,83.839,83.8,7.82193681]
[1771589428230,3.4795766,83.839,83.801,3.43556158]
[1771589428428,3.4795766,83.839,83.802,3.43556158]
[1771589428614,3.4795766,83.839,83.81,4.38637523]
[1771589429317,3.4795766,83.837,83.81,4.38637523]
[1771589429520,3.4795766,83.837,83.807,3.43556158]
[1771589430637,3.4795766,83.835,83.801,3.43556158]
[1771589431531,3.4795766,83.835,83.802,3.43556158]
[1771589431916,3.4795766,83.835,83.811,3.43556158]
[1771589432536,11.92833456,83.834,83.811,3.43556158]
[1771589433034,3.4795766,83.833,83.811,3.43556158]
[1771589435321,3.4795766,83.831,83.811,3.43556158]
[1771589435740,3.4795766,83.829,83.796,11.93372046]
[1771589436235,3.4795766,83.829,83.793,3.43556158]
[1771589436438,3.4795766,83.829,83.795,3.43556158]
[1771589439430,2.7824667,83.827,83.796,14.75497461]
[1771589439744,2.7824667,83.833,83.81,4.38637523]
[1771589440042,2.7824667,83.833,83.811,2.82123076]
[1771589440622,2.7824667,83.849,83.811,2.82123076]
[1771589441441,2.7824667,83.847,83.811,2.82123076]
[1771589441944,2.7824667,83.847,83.813,2.82123076]
[1771589444357,2.7824667,83.845,83.813,2.82123076]
[1771589445339,2.7824667,83.839,83.804,2.82123076]
[1771589451252,11.92776545,83.838,83.804,2.82123076]
[1771589451558,2.7824667,83.837,83.806,2.82123076]
[1771589451854,2.7824667,83.837,83.801,2.81337092]
[1771589453359,2.7824667,83.835,83.801,2.77316609]
[1771589453857,2.7824667,83.835,83.802,2.73342304]
[1771589455056,2.7824667,83.833,83.803,11.93274703]
[1771589455269,2.7824667,83.833,83.804,2.69413649]
[1771589456660,2.7824667,83.833,83.81,4.37805647]
[1771589456957,2.7824667,83.833,83.811,2.61691193]
[1771589459444,2.7824667,83.831,83.811,2.61691193]
[1771589459662,2.7824667,83.831,83.804,2.54145118]
[1771589461966,0.14216157,83.858,83.798,11.93338923]
[1771589461967,2.7824667,83.829,83.798,11.93338923]
[1771589462151,11.92890373,83.83,83.783,2.43147933]
[1771589462152,2.7824667,83.819,83.783,2.43147933]
[1771589462469,2.7824667,83.819,83.744,5.36086188]
[1771589462470,2.7824667,83.819,83.791,2.43147933]
[1771589462669,2.7824667,83.829,83.801,2.43147933]
[1771589463364,2.7824667,83.829,83.811,2.39566089]
[1771589464157,2.7824667,83.835,83.811,2.39566089]
[1771589467757,11.92833456,83.834,83.811,2.39566089]
[1771589467958,11.92833456,83.834,83.78,11.94619736]
[1771589467959,2.10225721,83.844,83.821,2.15619045]
[1771589472369,11.92694906,83.844,83.821,2.15619045]
[1771589474378,2.10225721,83.845,83.821,2.15619045]
[1771589476776,14.02912485,83.845,83.823,1.87542974]
[1771589476967,2.10225721,83.844,83.823,1.87542974]
[1771589477370,2.10225721,83.839,83.791,1.87542974]
[1771589477670,2.10225721,83.839,83.764,5.36086188]
[1771589477671,2.10225721,83.839,83.801,1.87542974]
[1771589478566,2.10225721,83.839,83.81,4.37805647]
[1771589479071,2.10225721,83.837,83.811,1.81690447]
[1771589480185,2.10225721,83.837,83.812,1.78814503]
[1771589480687,2.10225721,83.837,83.811,11.93160802]
[1771589480688,14.02914461,83.845,83.821,1.78814503]
[1771589482385,14.02914461,83.845,83.823,1.73161334]
[1771589483578,2.10225721,83.844,83.823,1.73161334]
[1771589484286,2.10225721,83.844,83.817,1.67637284]
[1771589484483,2.10225721,83.839,83.801,1.67637284]
[1771589488480,2.10225721,83.837,83.81,4.37805647]
[1771589493691,2.10225721,83.835,83.81,4.37805647]
[1771589494370,2.10225721,83.835,83.81,5.79658566]
[1771589498087,1.77081321,83.833,83.794,1.30035664]
[1771589498282,1.77081321,83.829,83.8,4.37805647]
[1771589498491,1.77081321,83.829,83.811,1.30035664]
[1771589500379,1.77081321,83.839,83.813,1.25496606]
[1771589500585,1.77081321,83.839,83.821,1.25496606]
[1771589501702,1.77081321,83.842,83.821,1.25496606]
[1771589502695,1.77081321,83.84,83.821,1.25496606]
[1771589506283,1.77081321,83.838,83.811,1.12492046]
[1771589507195,1.77081321,83.838,83.813,1.10410913]
[1771589510090,1.77081321,83.838,83.814,11.93118094]
[1771589510290,1.77081321,83.838,83.815,1.04309843]
[1771589513012,1.77081321,83.849,83.821,0.98416597]
[1771589513195,8.2716192,83.88,83.831,0.98416597]
[1771589513196,1.77081321,83.863,83.831,0.98416597]
[1771589513391,4.37778518,83.86,83.804,29.83131024]
[1771589513590,11.92406753,83.864,83.81,4.37778518]
[1771589513591,1.77081321,83.849,83.81,4.37778518]
[1771589515206,41.74220016,83.848,83.811,11.93160802]
[1771589515414,1.77081321,83.847,83.811,11.93160802]
[1771589515591,1.77081321,83.847,83.811,12.05990227]
[1771589515796,1.77081321,83.847,83.812,0.12829425]
[1771589517821,1.77081321,83.845,83.812,0.12829425]
[1771589519008,1.77081321,83.843,83.812,0.12829425]
[1771589519523,1.77081321,83.843,83.8,4.43257497]
[1771589519524,4.37778518,83.84,83.8,4.43257497]
[1771589519722,1.77081321,83.839,83.8,4.43257497]
[1771589519921,41.74419158,83.844,83.786,41.77308857]
[1771589519922,1.77081321,83.829,83.786,41.77308857]
[1771589520419,1.77081321,83.809,83.78,4.37778518]
[1771589521025,1.77081321,83.809,83.781,11.93588045]
[1771589522200,4.37778518,83.84,83.761,11.93873043]
[1771589522202,1.77081321,83.799,83.761,11.93873043]
[1771589523017,1.77081321,83.797,83.761,11.93873043]
[1771589523523,4.37778518,83.77,83.73,4.57778518]
[1771589523726,1.77081321,83.769,83.731,11.94300796]
[1771589525404,4.37778518,83.8,83.74,4.37778518]
[1771589525722,4.37778518,83.8,83.731,41.80052787]
[1771589525723,1.5568345,83.789,83.75,4.37778518]
[1771589525919,1.5568345,83.789,83.76,4.37778518]
[1771589526221,1.5568345,83.798,83.77,4.37778518]
[1771589531337,1.5568345,83.796,83.767,11.93780425]
[1771589531533,1.5568345,83.796,83.78,4.37778518]
[1771589531829,1.5568345,83.796,83.77,4.37778518]
[1771589533620,1.5568345,83.796,83.771,11.93730527]
[1771589534534,29.82936821,83.811,83.766,11.93791176]
[1771589534535,1.5568345,83.794,83.766,11.93791176]
[1771589535127,1.5568345,83.794,83.77,4.37778518]
[1771589537040,11.93417111,83.793,83.77,4.37778518]
[1771589537228,1.5568345,83.792,83.77,4.37778518]
[1771589540031,11.93445596,83.791,83.77,4.37778518]
[1771589540240,1.5568345,83.79,83.77,4.37778518]
[1771589541651,1.5568345,83.808,83.771,11.93730527]
[1771589544022,1.5568345,83.806,83.77,4.37778518]
[1771589553522,1.5568345,83.812,83.79,4.37778518]
[1771589553726,1.5568345,83.828,83.79,4.37778518]
[1771589555749,1.5568345,83.826,83.784,11.93531437]
[1771589557252,4.37778518,83.82,83.784,11.93531437]
[1771589557426,1.5568345,83.819,83.784,11.93531437]
[1771589557747,1.5568345,83.819,83.79,4.37778518]
[1771589559942,1.5568345,83.817,83.79,4.37778518]
[1771589561151,1.5568345,83.815,83.79,4.37778518]
[1771589562046,1.5568345,83.815,83.79,4.38006568]
[1771589566555,4.38006568,83.83,83.8,4.38006568]
[1771589566556,1.5568345,83.82,83.8,4.38006568]
[1771589566935,1.5568345,83.819,83.8,4.38006568]
[1771589567257,1.5568345,83.819,83.79,4.38006568]
[1771589568154,1.5568345,83.817,83.79,4.38006568]
[1771589571033,1.5568345,83.815,83.79,16.31455155]
[1771589571451,1.5568345,83.82,83.8,4.38006568]
[1771589572054,1.5568345,83.825,83.8,4.38006568]
[1771589572256,1.5568345,83.842,83.81,4.38006568]
[1771589572635,4.38006568,83.84,83.79,41.77098187]
[1771589572937,1.5568345,83.837,83.801,11.93303182]
[1771589574256,1.5568345,83.837,83.729,47.77290715]
[1771589574555,1.5568345,83.829,83.79,4.38006568]
[1771589575437,1.5568345,83.827,83.791,11.93445596]
[1771589578056,1.5568345,83.825,83.791,11.93445596]
[1771589580435,1.5568345,83.823,83.8,4.38006568]
[1771589580858,1.5568345,83.828,83.8,4.38006568]
[1771589581159,1.5568345,83.828,83.764,65.05237613]
[1771589581160,1.5568345,83.828,83.81,4.38006568]
[1771589581359,1.5568345,83.828,83.8,4.38006568]
[1771589582842,1.5568345,83.828,83.801,11.93303182]
[1771589584360,29.8164064,83.847,83.8,4.38006568]
[1771589584361,1.5568345,83.826,83.8,4.38006568]
[1771589585555,1.5568345,83.826,83.801,11.93303182]
[1771589586162,1.5568345,83.824,83.801,11.93303182]
[1771589601874,1.5568345,83.822,83.788,11.93488327]
[1771589602073,1.5568345,83.822,83.79,4.38006568]
[1771589602682,1.5568345,83.822,83.8,4.38006568]
[1771589603801,1.5568345,83.827,83.8,4.38006568]
[1771589604293,1.5568345,83.827,83.801,11.93303182]
[1771589606386,1.5568345,83.825,83.79,4.38006568]
[1771589606976,1.5568345,83.825,83.8,4.38006568]
[1771589608994,1.5568345,83.825,83.801,11.93303182]
[1771589610981,1.5568345,83.825,83.774,0.28432314]
[1771589611199,1.5568345,83.825,83.8,4.38006568]
[1771589613202,1.5568345,83.825,83.801,11.93303182]
[1771589613395,1.5568345,83.838,83.81,4.38006568]
[1771589614591,1.5568345,83.836,83.811,11.93160802]
[1771589617311,1.5568345,83.864,83.811,11.93160802]
[1771589617501,0.2,83.88,83.831,0.28432314]
[1771589617502,1.5568345,83.875,83.831,0.28432314]
[1771589617702,1.5568345,83.869,83.812,13.28302467]
[1771589618206,1.5568345,83.869,83.813,0.28432314]
[1771589618409,1.5568345,83.869,83.83,4.38006568]
[1771589619193,1.5568345,83.869,83.82,11.9678949]
[1771589619194,1.5568345,83.869,83.84,4.38006568]
[1771589619415,1.5568345,83.869,83.822,41.75514781]
[1771589619595,1.5568345,83.867,83.83,4.38006568]
[1771589620812,41.7322459,83.868,83.822,11.93004223]
[1771589620813,1.5568345,83.859,83.822,11.93004223]
[1771589621211,1.5568345,83.859,83.83,4.38006568]
[1771589621594,1.5568345,83.857,83.83,4.38006568]
[1771589622010,1.5568345,83.857,83.83,4.37585322]
[1771589622815,1.5568345,83.857,83.84,4.37585322]
[1771589625117,1.5568345,83.857,83.84,16.30322832]
[1771589625298,1.5568345,83.869,83.84,16.30322832]
[1771589625797,1.5568345,83.879,83.84,16.30322832]
[1771589626015,1.5568345,83.877,83.85,4.37585322]
[1771589626211,1.5568345,83.877,83.84,16.30322832]
[1771589627315,1.5568345,83.875,83.84,16.30322832]
[1771589630930,1.5568345,83.869,83.83,4.37585322]
[1771589631100,0.2,83.88,83.831,0.28432314]
[1771589631101,1.5568345,83.879,83.831,0.28432314]
[1771589631301,1.5568345,83.879,83.814,5.36086188]
[1771589631302,1.5568345,83.879,83.85,4.37585322]
[1771589632621,1.5568345,83.877,83.86,4.37585322]
[1771589632812,1.5568345,83.877,83.85,4.37585322]
[1771589633915,1.5568345,83.877,83.86,4.37585322]
[1771589635226,1.5568345,83.875,83.85,4.37585322]
[1771589637813,0.2,83.88,83.87,4.37585322]
[1771589638123,0.2,83.89,83.871,0.43595678]
[1771589638311,0.2,83.89,83.88,4.37585322]
[1771589639523,0.2,83.89,83.876,0.43595678]
[1771589640018,0.2,83.89,83.841,1.19273386]
[1771589640019,1.02187718,83.899,83.88,4.37585322]
[1771589640222,1.02187718,83.898,83.87,4.37585322]
[1771589640622,1.02187718,83.898,83.86,4.37585322]
[1771589640821,1.02187718,83.898,83.86,4.60351676]
[1771589641018,1.02187718,83.898,83.861,0.22358822]
[1771589641226,1.02187718,83.898,83.86,4.37585322]
[1771589641728,1.02187718,83.898,83.861,0.22358822]
[1771589642925,1.02187718,83.896,83.87,4.5914307]
[1771589643134,1.02187718,83.896,83.871,0.21557748]
[1771589644414,1.02187718,83.896,83.866,0.21411688]
[1771589644631,1.02187718,83.896,83.87,4.37585322]
[1771589645231,0.91977818,83.894,83.87,4.37585322]
[1771589645631,0.91977818,83.894,83.871,0.21339914]
[1771589646029,1.11977818,83.9,83.88,4.58792408]
[1771589646229,0.91977818,83.898,83.873,0.21207086]
[1771589646620,0.91977818,83.898,83.88,4.37585322]
[1771589647223,11.91937733,83.897,83.88,4.37585322]
[1771589648819,1.18218209,83.9,83.881,0.20817685]
[1771589649019,0.98218209,83.896,83.88,4.37585322]
[1771589650638,0.98218209,83.896,83.878,0.20690855]
[1771589650826,0.98218209,83.896,83.88,4.37585322]
[1771589651021,0.2,83.9,83.881,0.20441549]
[1771589651219,0.2,83.9,83.89,4.37585322]
[1771589651836,0.2,83.9,83.89,4.58026871]
[1771589652042,1.18218209,83.91,83.891,0.2031904]
[1771589653027,0.2,83.91,83.9,4.37585322]
[1771589653437,0.2,83.92,83.901,0.20197937]
[1771589653625,1.18218209,83.92,83.901,0.20197937]
[1771589654737,1.18218209,83.92,83.91,4.37585322]
[1771589654933,0.9821821,83.94,83.888,11.92065611]
[1771589655135,0.9821821,83.94,83.92,4.37585322]
[1771589656829,0.9821821,83.94,83.91,4.37585322]
[1771589656830,0.98218209,83.936,83.91,4.37585322]
[1771589660251,0.98218209,83.947,83.93,4.37585322]
[1771589660455,0.98218209,83.947,83.94,4.37585322]
[1771589661233,0.1,83.95,83.94,4.37585322]
[1771589661958,0.98218209,83.947,83.93,4.37585322]
[1771589662455,0.98218209,83.945,83.92,4.37585322]
[1771589662751,0.98218209,83.945,83.93,4.37585322]
[1771589663446,0.98218209,83.945,83.92,4.37585322]
[1771589663651,0.1,83.95,83.93,4.37585322]
[1771589663845,0.1,83.95,83.94,4.37585322]
[1771589664437,0.2610546,83.958,83.94,4.37585322]
[1771589664645,0.98218209,83.957,83.94,4.37585322]
[1771589666853,11.911001,83.956,83.94,4.37585322]
[1771589667036,0.98218209,83.955,83.92,4.37585322]
[1771589668847,0.98218209,83.949,83.91,4.37585322]
[1771589670546,0.98218209,83.949,83.92,4.37585322]
[1771589671148,0.98218209,83.947,83.92,4.37585322]
[1771589673158,0.98218209,83.945,83.886,0.28432314]
[1771589673344,0.98218209,83.945,83.92,4.37585322]
[1771589675255,0.98218209,83.943,83.92,4.37585322]
[1771589680351,0.97880849,83.941,83.92,4.37585322]
[1771589683873,11.91327138,83.94,83.92,4.36638261]
[1771589684056,0.97880849,83.939,83.92,4.36638261]
[1771589685169,0.97880849,83.937,83.91,4.36638261]
[1771589685366,0.97880849,83.937,83.891,11.92022982]
[1771589685367,0.97880849,83.937,83.9,4.36638261]
[1771589687361,41.69843689,83.936,83.91,4.36638261]
[1771589687570,0.97880849,83.935,83.91,4.36638261]
[1771589691070,0.97880849,83.933,83.91,4.36638261]
[1771589691991,11.914123,83.934,83.92,4.36638261]
[1771589694991,0.97880849,83.933,83.91,4.36638261]
[1771589695494,0.97880849,83.933,83.881,41.72577818]
[1771589695495,0.97880849,83.939,83.92,4.36638261]
[1771589695779,0.97880849,83.939,83.91,4.36638261]
[1771589696296,0.97880849,83.939,83.9,4.36638261]
[1771589697080,0.97880849,83.937,83.901,11.91880907]
[1771589698574,0.97880849,83.937,83.9,4.36638261]
[1771589700983,0.97880849,83.935,83.91,4.36638261]
[1771589702383,11.91383911,83.936,83.92,4.36638261]
[1771589702583,0.97880849,83.935,83.91,4.36638261]
[1771589702975,0.97880849,83.945,83.92,4.36638261]
[1771589703170,29.77772145,83.956,83.93,4.36638261]
[1771589703375,0.1,83.96,83.95,4.36638261]
[1771589704077,11.90947059,83.967,83.95,4.36638261]
[1771589706071,0.97880849,83.975,83.96,4.36638261]
[1771589706387,0.97880849,83.988,83.96,4.36638261]
[1771589706584,0.97880849,83.988,83.97,4.36638261]
[1771589707104,0.97880849,83.988,83.96,4.36638261]
[1771589707487,0.97880849,83.988,83.97,4.36638261]
[1771589709782,0.1,84.04,83.981,0.95235493]
[1771589710081,11.90007115,84.034,84.02,4.36638261]
[1771589710281,11.89930167,84.039,84.02,4.36638261]
[1771589711694,0.1,84.04,84.02,4.36638261]
[1771589711895,0.1,84.04,84.03,4.36638261]
[1771589713198,11.89640609,84.059,84.031,0.95235493]
[1771589713381,0.96669328,84.058,84.04,4.36638261]
[1771589713794,0.96669328,84.056,84.04,4.36638261]
[1771589714678,0.96669328,84.056,84.03,4.36638261]
[1771589714914,0.96669328,84.054,84.04,4.36638261]
[1771589715084,0.96669328,84.067,84.04,4.36638261]
[1771589715485,11.89444521,84.073,84.05,4.36638261]
[1771589715780,0.96669328,84.077,84.06,4.36638261]
[1771589717195,11.89400066,84.076,84.06,4.36638261]
[1771589717406,0.1,84.08,84.06,4.36638261]
[1771589717586,0.1,84.08,84.07,4.36638261]
[1771589718118,0.96669328,84.107,84.071,0.91415893]
[1771589718407,0.96669328,84.107,84.08,4.36638261]
[1771589719282,0.96669328,84.105,84.08,4.36638261]
[1771589719785,0.96669328,84.105,84.054,29.74253375]
[1771589719786,0.96669328,84.105,84.054,0.90390232]
[1771589719995,0.96669328,84.105,84.07,4.36638261]
[1771589720203,0.96669328,84.105,84.08,4.36638261]
[1771589721609,0.96669328,84.103,84.08,4.36638261]
[1771589722006,11.88947329,84.109,84.091,0.95235493]
[1771589722599,29.71820563,84.124,84.1,4.36638261]
[1771589723009,29.71820563,84.124,84.074,29.73565064]
[1771589723010,0.96669328,84.123,84.09,4.36638261]
[1771589723214,0.96669328,84.119,84.08,4.36638261]
[1771589723520,0.96669328,84.119,84.043,0.28432314]
[1771589723704,0.96669328,84.117,84.09,4.36638261]
[1771589724294,0.96669328,84.109,84.045,0.28432314]
[1771589724494,0.96669328,84.099,84.06,4.36638261]
[1771589724832,0.96669328,84.089,84.05,4.36638261]
[1771589725010,0.96669328,84.089,84.04,4.36638261]
[1771589725195,0.96669328,84.079,84.04,5.22551078]
[1771589725398,4.36638261,84.08,84.04,5.22551078]
[1771589725399,0.96669328,84.076,84.04,5.22551078]
[1771589725599,4.36638261,84.08,84.04,5.22551078]
[1771589725600,0.96669328,84.071,84.04,5.22551078]
[1771589726292,0.96669328,84.071,84.04,4.36638261]
[1771589726722,0.96669328,84.071,84.04,5.21605094]
[1771589727919,0.96669328,84.059,84.02,4.36638261]
[1771589728106,0.96669328,84.059,84.02,5.20454877]
[1771589728420,0.96669328,84.059,84.021,0.83816616]
[1771589729422,0.96669328,84.059,84.03,4.36638261]
[1771589729626,0.96669328,84.059,84.031,0.82894709]
[1771589729823,41.63296378,84.068,84.031,0.82894709]
[1771589730004,0.96669328,84.067,84.031,0.82894709]
[1771589730318,11.89513251,84.068,84.041,0.81983392]
[1771589731414,0.96669328,84.084,84.051,0.81082542]
[1771589731626,4.36638261,84.08,84.051,0.81082542]
[1771589731828,0.96669328,84.079,84.051,0.81082542]
[1771589732010,0.96669328,84.077,84.051,0.81082542]
[1771589732320,3.69383402,84.1,84.04,4.36638261]
[1771589732321,4.36638261,84.09,84.061,0.80192039]
[1771589732507,12.85857231,84.091,84.061,0.80192039]
[1771589732706,0.96669328,84.09,84.061,0.80192039]
[1771589733224,0.96669328,84.09,84.052,11.89739684]
[1771589733225,11.8907478,84.099,84.071,0.79311764]
[1771589733431,3.69383402,84.12,84.077,0.79311764]
[1771589733432,0.96669328,84.115,84.077,0.79311764]
[1771589733725,0.96669328,84.115,84.081,0.79311764]
[1771589733905,0.96669328,84.115,84.09,23.54202041]
[1771589734102,0.96669328,84.113,84.082,0.784416]
[1771589734323,0.96669328,84.113,84.08,11.6500121]
[1771589734624,0.96669328,84.109,84.074,0.784416]
[1771589735218,0.96669328,84.099,84.065,0.77581431]
[1771589735529,0.96669328,84.099,84.06,11.6500121]
[1771589735719,0.96669328,84.099,84.06,12.42582641]
[1771589735916,0.96669328,84.099,84.06,11.6500121]
[1771589736934,0.96669328,84.097,84.061,0.76731142]
[1771589737226,0.96669328,84.097,84.071,0.75059751]
[1771589737626,11.8908892,84.098,84.08,11.6500121]
[1771589738818,11.6500121,84.11,84.07,11.6500121]
[1771589738819,0.79547848,84.103,84.07,11.6500121]
[1771589740132,11.8900409,84.104,84.081,0.72623968]
[1771589740626,11.88919272,84.11,84.081,0.72623968]
[1771589740836,0.79547848,84.109,84.061,0.72623968]
[1771589741132,0.79547848,84.099,84.061,0.72623968]
[1771589742629,41.6181122,84.098,84.061,0.72623968]
[1771589742938,0.79547848,84.097,84.061,0.72623968]
[1771589743420,0.79547848,84.097,84.06,11.6500121]
[1771589744024,0.79547848,84.097,84.06,11.65676016]
[1771589744226,0.79547848,84.097,84.061,0.69504833]
[1771589745418,0.79547848,84.095,84.061,0.69504833]
[1771589745823,0.79547848,84.089,84.035,0.68747311]
[1771589746119,0.79547848,84.089,84.04,0.67998491]
[1771589748733,41.61910197,84.096,84.04,0.67998491]
[1771589748734,0.79547848,84.087,84.04,0.67998491]
[1771589748936,0.79547848,84.087,84.04,12.33674507]
[1771589749235,0.79547848,84.079,84.04,12.33674507]
[1771589749433,0.79547848,84.079,84.041,0.6580324]
[1771589749733,0.79547848,84.079,84.05,11.65676016]
[1771589750136,0.79547848,84.079,84.051,0.65088235]
[1771589750323,0.79547848,84.079,84.06,11.65676016]
[1771589750829,11.89371773,84.078,84.051,0.65088235]
[1771589751138,0.79547848,84.077,84.051,0.65088235]
[1771589751341,0.79547848,84.077,84.05,11.65676016]
[1771589751541,0.79547848,84.077,84.044,0.64381442]
[1771589751944,0.79547848,84.077,84.046,0.63682768]
[1771589752148,0.79547848,84.077,84.051,0.63682768]
[1771589753339,0.79547848,84.077,84.015,59.51263254]
[1771589753340,0.79547848,84.075,84.04,11.65676016]
[1771589753726,0.79547848,84.075,84.037,0.62992119]
[1771589754021,0.79547848,84.075,84.04,4.35352271]
[1771589754240,0.79547848,84.075,84.03,4.35352271]
[1771589754631,0.79547848,84.069,84.03,4.35352271]
[1771589755550,0.79547848,84.067,84.031,12.51671537]
[1771589756041,0.79547848,84.067,84.031,12.51004413]
[1771589756246,0.79547848,84.067,84.032,0.60967403]
[1771589756950,0.79547848,84.067,84.022,0.60967403]
[1771589757321,0.79547848,84.059,84.02,4.35352271]
[1771589757526,0.79547848,84.057,84.02,4.95660214]
[1771589757726,0.79547848,84.057,84.021,0.60307943]
[1771589758337,0.79547848,84.057,84.02,4.35352271]
[1771589759139,0.79547848,84.057,84.012,0.59656056]
[1771589759140,0.79547848,84.049,84.012,0.59656056]
[1771589759438,47.57632959,84.076,84.005,0.59011658]
[1771589759439,0.79547848,84.039,84.005,0.59011658]
[1771589759739,0.79547848,84.029,83.99,4.94363929]
[1771589759936,0.79547848,84.029,83.991,0.59011658]
[1771589760639,0.79547848,84.029,83.99,4.35352271]
[1771589760640,0.79547848,84.027,83.992,12.48964239]
[1771589760847,0.79547848,84.027,83.99,4.35352271]
[1771589761146,0.79547848,84.019,83.983,11.90716978]
[1771589762630,0.79547848,84.017,83.974,11.90844785]
[1771589763139,0.79547848,84.009,83.97,16.26250186]
[1771589763529,0.79547848,84.009,83.971,0.56507233]
[1771589763734,0.79547848,84.009,83.98,4.35352271]
[1771589763936,0.79547848,84.009,83.99,4.35352271]
[1771589764534,11.90221143,84.018,83.991,0.73458311]
[1771589765439,4.35352271,84.02,83.991,0.73458311]
[1771589765947,4.35352271,84.0,83.971,0.73458311]
[1771589766149,4.35352271,84.0,83.962,0.73458311]
[1771589766552,0.7408831,83.999,83.962,0.73458311]
[1771589767646,0.7062712,83.989,83.964,0.6884685]
[1771589767837,0.7062712,83.989,83.96,0.2]
[1771589768739,11.68538249,83.98,83.96,0.2]
[1771589769061,11.68538249,84.0,83.962,0.6884685]
[1771589769265,0.7062712,84.003,83.962,0.6884685]
[1771589769864,11.68538249,84.0,83.963,11.91000797]
[1771589770052,11.68538249,84.0,83.964,0.6884685]
[1771589770250,0.7062712,84.003,83.964,0.6884685]
[1771589770560,11.90380622,84.007,83.964,0.6884685]
[1771589770960,12.61007742,84.007,83.964,0.6884685]
[1771589771560,0.7062712,84.006,83.964,0.6884685]
[1771589774069,0.7062712,84.004,83.971,0.6884685]
[1771589775359,0.7062712,84.012,83.971,0.6884685]
[1771589775560,0.7062712,84.012,83.981,0.6884685]
[1771589778970,29.75231755,84.028,83.961,0.6884685]
[1771589778971,0.7062712,83.999,83.961,0.6884685]
[1771589779170,0.7062712,83.999,83.962,0.6884685]
[1771589779372,0.7062712,83.999,83.971,0.6884685]
[1771589781484,0.7062712,84.009,83.981,0.6884685]
[1771589782972,0.7062712,84.019,83.981,0.6884685]
[1771589783471,0.7062712,84.026,83.991,0.6884685]
[1771589784480,0.7062712,84.019,83.983,0.6884685]
[1771589785475,0.7062712,84.017,83.985,0.6884685]
[1771589786781,0.7062712,83.999,83.962,0.6884685]
[1771589786979,0.7062712,83.999,83.963,0.6884685]
[1771589787865,0.7062712,83.997,83.965,0.6884685]
[1771589791781,0.7062712,83.995,83.966,11.90958245]
[1771589792175,0.7062712,83.995,83.966,12.59805095]
[1771589792374,0.7062712,83.995,83.962,11.91010115]
[1771589792575,0.7062712,83.995,83.963,0.6884685]
[1771589793588,0.7062712,83.989,83.96,0.2]
[1771589793971,0.7062712,83.987,83.96,0.2]
[1771589795095,0.7062712,83.985,83.96,0.2]
[1771589798694,0.61198692,83.99,83.961,0.64880041]
[1771589799013,3.69383402,84.01,83.971,0.64880041]
[1771589799014,0.61198692,84.002,83.971,0.64880041]
[1771589799509,0.61198692,84.016,83.981,0.64880041]
[1771589801082,11.90263643,84.015,83.982,11.90731347]
[1771589801281,0.61198692,84.014,83.983,0.64880041]
[1771589803590,0.61198692,84.013,83.985,0.64880041]
[1771589805489,0.61198692,84.013,83.99,16.26765825]
[1771589806004,0.61198692,84.013,83.99,16.26525394]
[1771589809222,0.61198692,84.013,83.99,16.91405435]
[1771589811593,11.90306146,84.012,83.99,5.00793454]
[1771589811799,0.61198692,84.011,83.99,4.35913413]
[1771589814029,0.61198692,84.011,83.99,5.00793454]
[1771589814612,0.61198692,84.011,83.991,0.64880041]
[1771589817413,0.61198692,84.011,83.992,12.5546962]
[1771589817718,0.61198692,84.011,83.992,11.90589579]
[1771589818099,0.61198692,84.011,83.993,0.64880041]
[1771589819407,11.90272413,84.015,84.0,4.35913413]
[1771589820900,0.61198692,84.015,84.0,4.35913413]
[1771589821810,0.61198692,84.015,83.99,5.00793454]
[1771589822022,0.61198692,84.015,83.99,4.35913413]
[1771589822521,0.61198692,84.015,83.975,0.64880041]
[1771589822717,0.61198692,84.009,83.977,0.64880041]
[1771589823310,0.61198692,84.007,83.97,5.00793454]
[1771589823611,0.61198692,83.989,83.96,0.2]
[1771589824113,0.61198692,83.989,83.95,0.2]
[1771589824317,0.61198692,83.979,83.95,0.2]
[1771589825607,0.58719026,83.977,83.95,0.2]
[1771589826098,0.58719026,83.977,83.899,47.67614476]
[1771589826099,0.58719026,83.959,83.925,0.60594586]
[1771589826301,0.58719026,83.949,83.911,0.60594586]
[1771589827309,0.57382126,83.947,83.913,0.56457711]
[1771589828312,4.35913413,83.95,83.914,11.9169626]
[1771589828313,0.57382126,83.945,83.914,11.9169626]
[1771589828527,0.57382126,83.939,83.91,4.35913413]
[1771589828719,0.57382126,83.939,83.908,11.91773033]
[1771589829106,0.57382126,83.939,83.91,4.35913413]
[1771589829527,104.3,83.994,83.921,0.56457711]
[1771589829528,0.57382126,83.945,83.921,0.56457711]
[1771589830813,3.69383402,83.941,83.901,0.56457711]
[1771589831012,11.9127037,83.944,83.92,4.35913413]
[1771589831207,11.9127037,83.944,83.92,4.97438251]
[1771589831720,11.9127037,83.944,83.921,0.61524838]
[1771589833921,3.69383402,83.957,83.921,0.61524838]
[1771589833922,3.69383402,83.953,83.921,0.61524838]
[1771589834427,0.28432314,83.952,83.92,4.35913413]
[1771589836506,41.6909864,83.951,83.92,4.35913413]